Workbook

Sheet Feed
A1: Molecular Weights
A2: Methanol | B2: 32
A3: Water | B3: 18
A7: Rotameter Readings from Experiment
B8: Feed | C8: Distillate | D8: Bottoms | E8: Reflux
A9: rotameter reading/ % | B9: 47 | C9: 28 | D9: 31 | E9: 22
A10: gradient | B10: 0.1186 | C10: 0.0747 | D10: 0.4833 | E10: 0.1231 | F10: Constants
A11: intercept | B11: 0.1378 | C11: -0.2591 | D11: -0.919 | E11: -0.1 | F11: Constants
A12: total mass flow/g/s | B12: =B10*B9+B11 -> 5.712 | C12: =C10*C9+C11 -> 1.8325 | D12: =D10*D9+D11 -> 14.0633 | E12: =E10*E9+E11 -> 2.6082 | G12: =B12+E12 -> 8.3202 | H12: =C12+D12 -> 15.8958
G13: 4.5
A14: refractive index | B14: 1.338181 | C14: 1.33954 | D14: 1.33553 | E14: 1.33553
A15: mole fraction of methanol | B15: 0.15 | C15: 0.165 | D15: 0.05 | E15: 0.05
A16: avg molecular weight g/mol | B16: =$B$2*B15+(1-B15)*$B$3 -> 20.1 | C16: =$B$2*C15+(1-C15)*$B$3 -> 20.31 | D16: =$B$2*D15+(1-D15)*$B$3 -> 18.7 | E16: =$B$2*E15+(1-E15)*$B$3 -> 18.7 | H16: Molar Balance Checker
G17: Feed | H17: Distillate | I17: Bottoms | K17: Difference | L17: % Difference
A18: total molar flow mol/s | B18: =B12/B16 -> 0.2841791045 | C18: =C12/C16 -> 0.09022648941 | D18: =D12/D16 -> 0.7520481283 | E18: =E12/E16 -> 0.1394759358 | G18: =B18+E18 -> 0.4236550403 | H18: =C18+E18 -> 0.2297024252 | I18: =D18 -> 0.7520481283 | K18: =G18-(H18+I18) -> -0.5580955133 | L18: =100*K18/G18 -> -131.7334766
A19: molar flow of methanol | B19: =B18*B15 -> 0.04262686567 | C19: =C18*C15 -> 0.01488737075 | D19: =D18*D15 -> 0.03760240642 | E19: =E18*E15 -> 0.006973796791 | G19: =B19+E19 -> 0.04960066246 | H19: =C19+E19 -> 0.02186116754 | I19: =D19 -> 0.03760240642 | K19: =G19-(H19+I19) -> -0.009862911499 | L19: =100*K19/G19 -> -19.88463663
A20: molar flow of water | B20: =B18*(1-B15) -> 0.2415522388 | C20: =C18*(1-C15) -> 0.07533911866 | D20: =D18*(1-D15) -> 0.7144457219 | E20: =E18*(1-E15) -> 0.132502139 | G20: =B20+E20 -> 0.3740543778 | H20: =C20+E20 -> 0.2078412577 | I20: =D20 -> 0.7144457219 | K20: =G20-(H20+I20) -> -0.5482326018 | L20: =100*K20/G20 -> -146.5649473
A21: Calibrated Balance Sheets | G21: =SUM(G19:G20) -> 0.4236550403
A22: molar flow/mol/s | B22: 0.2841791045 | C22: 0.09022648941 | D22: 0.7520481283 | G22: =G19/G21 -> 0.1170779473
A23: mole fraction | B23: 0.15 | C23: 0.165 | D23: 0.05
A25: Mass Transfer Ratio
A26: Enthalpy of A | B26: i(A) | C26: 5.4 | D26: I(A) | E26: 40.7
A27: Enthalpy of B | B27: i(B) | C27: 7.5 | D27: I(B) | E27: 48.1
A29: z | B29: =-(E27-C27)/((E26-E27)-(C26-C27)) -> 7.660377358
A31: Operating Line | D31: Raw data
A32: Condensate m/g/s | B32: =E33/E32 -> 4.487179487 | C32: Mass | D32: Time/t | E32: =6.5*60 -> 390
A33: Condensate n/mol/s | B33: =B32/B3 -> 0.2492877493 | C33: Molar | D33: Water collected/ml | E33: 1750
A34: Heat of Condensation | B34: =E27-C27 -> 40.6
A35: Power/kW | B35: =B33*B34 -> 10.12108262
A37: Enthalpy of Bottom Product
A38: Vapour | B38: =(E26-E27)*D23+E27 -> 47.73
A39: Liquid | B39: =(C26-C27)*D23+C27 -> 7.395
B41: Lb | C41: xb | D41: Vb | E41: B | F41: Balance | G41: x | H41: Diagonal
B42: 0.988268 | C42: 0.05 | D42: 0.23622 | E42: 0.752048 | F42: =B42-(D42+E42) -> 0 | G42: 0 | H42: 0
B43: Lb*xb | C43: Vb*yB | D43: B*xB | G43: 1 | H43: 1
B44: =B42*C42 -> 0.0494134 | C44: =D42*D23 -> 0.011811 | D44: =D22*D23 -> 0.03760240642 | F44: =B44-(C44+D44) -> -6.4171123e-09
B45: Lb*ib | C45: fii | D45: Vb*Ib | E45: B*iB | G45: xa | H45: ya
B46: =B42*((C26-C27)*C42+C27) -> 7.30824186 | C46: =B35 -> 10.12108262 | D46: =D42*B38 -> 11.2747806 | E46: =E42*B39 -> 5.56139496 | F46: =B46+C46-(D46+E46) -> 0.5931489211 | G46: 0 | H46: =C23 -> 0.165
G47: 1 | H47: =H46 -> 0.165
A50: Data Calculations | B50: x | C50: L | D50: V | E50: L/V | F50: y | G50: alpha | H50: y* | I50: xi | J50: alpha | K50: yi | L50: (y-yi)/(x-xi) | M50: -kx/ky | N50: Solver | O50: z/(abs(y-yi)*(z-y)) | P50: dy | Q50: Ny integ. | R50: z/(abs(x-xi)*(z-x)) | S50: dx | T50: Nx integ. | U50: y-yi
B51: 0.05 | C51: =B42 -> 0.988268 | D51: =D42 -> 0.23622 | E51: =C51/D51 -> 4.183676234 | F51: =B51*C51/D51-$D$44/D51 -> 0.04999997283 | G51: =7.836-12.22*B51+7.749*B51^2 -> 7.2443725 | H51: =G51*B51/(1+(G51-1)*B51) -> 0.2760352719 | I51: 0.006746683389 | J51: =7.836-12.22*I51+7.749*I51^2 -> 7.753908246 | K51: =J51*I51/(1+(J51-1)*I51) -> 0.05003332159 | L51: =(F51-K51)/(B51-I51) -> -0.0007710103682 | M51: =-D94 -> -0.0007710873146 | N51: =1000000000*(M51-L51) -> -76.94639434 | U51: =F51-K51 -> -3.334875557e-05
B52: =B51+0.008846 -> 0.058846 | C52: =$B$42*($B$29-$C$42)/($B$29-B52) -> 0.9894180602 | D52: =C52-$E$42 -> 0.2373700602 | E52: =C52/D52 -> 4.168251292 | F52: =B52*C52/D52-$D$44/D52 -> 0.0868723239 | G52: 7.143735518 | H52: 0.3087548162 | I52: 0.01215905601 | J52: =7.836-12.22*I52+7.749*I52^2 -> 7.688561968 | K52: =J52*I52/(1+(J52-1)*I52) -> 0.08645459717 | L52: 0.008947399312 | M52: =M51+$D$99 -> -0.0007579155587 | N52: =1000000000*(M52-L52) -> -9705314.871 | O52: =$B$29/(ABS(F52-K52)*($B$29-F52)) -> 2421.369004 | P52: =F52-F51 -> 0.03687235106 | Q52: =O52*P52 -> 89.28156795 | R52: =$B$29/(ABS(B52-I52)*($B$29-B52)) -> 21.58507815 | S52: =B52-B51 -> 0.008846 | T52: =R52*S52 -> 0.1909416014 | U52: 0.0004177267306
B53: 0.067692 | C53: =$B$42*($B$29-$C$42)/($B$29-B53) -> 0.9905708002 | D53: =C53-$E$42 -> 0.2385228002 | E53: =C53/D53 -> 4.152939674 | F53: =C53/D53*B53-$D$44/D53 -> 0.1234737818 | G53: 7.044311281 | H53: 0.3383905228 | I53: 0.0180129363 | J53: 7.618396204 | K53: 0.1226122515 | L53: 0.01734191943 | M53: -0.0007447438029 | N53: -18086663.23 | O53: 1179.740907 | P53: =F53-F52 -> 0.03660145792 | Q53: =O53*P53 -> 43.18023716 | R53: 20.30866421 | S53: =B53-B52 -> 0.008846 | T53: =R53*S53 -> 0.1796504436 | U53: 0.0008615303198
B54: 0.076538 | C54: 0.9917262294 | D54: =C54-$E$42 -> 0.2396782294 | E54: 4.137740136 | F54: =C54/D54*B54-$D$44/D54 -> 0.1598073209 | G54: 6.946099789 | H54: 0.3653629585 | I54: 0.02436439622 | J54: =7.836-12.22*I54+7.749*I54^2 -> 7.542867069 | K54: =J54*I54/(1+(J54-1)*I54) -> 0.158509005 | L54: 0.02488453644 | M54: -0.000731572047 | N54: -25616108.49 | O54: 786.6390518 | P54: 0.03633353913 | Q54: 28.58138077 | R54: 19.36021621 | S54: 0.008846 | T54: 0.1712604726 | U54: 0.001298315944
B55: 0.085384 | C55: 0.9928843572 | D55: =C55-$E$42 -> 0.2408363572 | E55: 4.12265145 | F55: =C55/D55*B55-$D$44/D55 -> 0.1958758723 | G55: 6.849101042 | H55: 0.3900199961 | I55: 0.0312793787 | J55: 7.46134761 | K55: 0.1941477168 | L55: 0.0319409954 | M55: -0.0007184002911 | N55: -32659395.69 | O55: 593.8360344 | P55: 0.03606855133 | Q55: 21.41880549 | R55: 18.6910434 | S55: 0.008846 | T55: 0.16534097 | U55: 0.00172815546
B56: 0.09423 | C56: 0.994045193 | D56: =C56-$E$42 -> 0.241997193 | E56: 4.10767241 | F56: 0.2316823242 | G56: 6.753315041 | H56: 0.4126518932 | I56: 0.0388358632 | J56: 7.373112982 | K56: 0.2295310465 | L56: 0.03883583714 | M56: =M55+$D$99 -> -0.0007052285353 | N56: -39541065.67 | O56: 479.3372321 | P56: 0.0358064519 | Q56: 17.16336555 | R56: 18.27728018 | S56: 0.008846 | T56: 0.1616808205 | U56: 0.002151277675
B57: 0.103076 | C57: 0.9952087464 | D57: 0.2431607464 | E57: 4.092801824 | F57: 0.2672295232 | G57: 6.658741784 | H57: 0.4335027697 | I57: 0.04712676279 | J57: 7.277320959 | K57: 0.2646617437 | L57: 0.04589480852 | M57: -0.0006920567794 | N57: -46586865.3 | O57: 403.5181198 | P57: 0.03554719903 | Q57: 14.34393892 | R57: 18.11712386 | S57: 0.008846 | T57: 0.1602640776 | U57: 0.002567779529
B58: 0.111922 | C58: 0.996375027 | D58: 0.244327027 | E58: 4.078038518 | F58: 0.3025202749 | G58: 6.565381273 | H58: 0.4527794462 | I58: 0.05626352611 | J58: 7.172989824 | K58: 0.2995423844 | L58: 0.05350291242 | M58: -0.0006788850236 | N58: -54181797.44 | O58: 349.615033 | P58: 0.03529075165 | Q58: 12.3381773 | R58: 18.23311112 | S58: 0.008846 | T58: 0.161290101 | U58: 0.002977890454
B59: 0.120768 | C59: 0.9975440442 | D59: 0.2454960442 | E59: 4.063381336 | F59: 0.3375573443 | G59: 6.473233506 | H59: 0.4706583273 | I59: 0.06638094634 | J59: 7.058970262 | K59: 0.3341756283 | L59: 0.06217869316 | M59: =M58+$D$99 -> -0.0006657132677 | N59: -62844406.43 | O59: 309.3390033 | P59: 0.03503706941 | Q59: 10.83833213 | R59: 18.68124374 | S59: 0.008846 | T59: 0.1652542822 | U59: 0.003381715922
B60: 0.129614 | C60: 0.9987158079 | D60: 0.2466678079 | E60: 4.048829138 | F60: =C60/D60*B60-$D$44/D60 -> 0.372343457 | G60: 6.382298485 | H60: 0.4872908152 | I60: 0.07764330492 | J60: 6.933913527 | K60: 0.3685639763 | L60: 0.07272330407 | M60: -0.0006525415118 | N60: -73375845.58 | O60: 278.104267 | P60: 0.03478611272 | Q60: 9.674166378 | R60: 19.57278555 | S60: 0.008846 | T60: 0.173140861 | U60: 0.003779480661
B61: 0.13846 | C61: 0.9998903275 | D61: 0.2478423275 | E61: 4.0343808 | F61: =C61/D61*B61-$D$44/D61 -> 0.4068812996 | G61: 6.292576209 | H61: 0.5028076077 | I61: 0.09025256059 | J61: 6.79623338 | K61: 0.4027098915 | L61: 0.08653038211 | M61: -0.000639369756 | N61: -87169751.86 | O61: 253.1745805 | P61: 0.03453784265 | Q61: 8.744103823 | R61: 21.12552654 | S61: 0.008846 | T61: 0.1868764078 | U61: 0.004171408153
B62: 0.147306 | C62: 1.001067613 | D62: 0.249019613 | E62: 4.020035213 | F62: 0.4411735206 | G62: 6.204066678 | H62: 0.5173221397 | I62: 0.1044591568 | J62: 6.644063987 | K62: 0.4366158793 | L62: 0.1063705284 | M62: -0.0006261980001 | N62: -106996726.4 | O62: 232.8202293 | P62: 0.03429222101 | Q62: 7.983922758 | R62: 23.79654024 | S62: 0.008846 | T62: 0.210504195 | U62: 0.004557641352
B63: 0.156152 | C63: 1.002247674 | D63: 0.2501996741 | E63: 4.005791286 | F63: 0.4752227309 | G63: 6.116769892 | H63: 0.5309333609 | I63: 0.1205761543 | J63: 6.475219076 | K63: 0.4702843124 | L63: 0.1388138045 | M63: -0.0006130262443 | N63: -139426830.8 | O63: 215.8868326 | P63: 0.03404921025 | Q63: 7.350776156 | R63: 28.6938658 | S63: 0.008846 | T63: 0.2538259369 | U63: 0.004938418496
B64: 0.165 | C64: =$B$42*($B$29-$C$42)/($B$29-B64) -> 1.003430788 | D64: 0.2513827883 | E64: 3.991644755 | F64: 0.5090391213 | G64: 6.030666525 | H64: 0.5437308008 | I64: 0.1390021786 | J64: 6.2871165 | K64: 0.5037249739 | L64: 0.2044074089 | M64: -0.0005998544884 | N64: -205007263.4 | O64: 201.571559 | P64: 0.03381639037 | Q64: 6.816422527 | R64: 39.31150809 | S64: 0.008848 | T64: 0.3478282236 | U64: 0.005314147319
A69: No. of data points | B69: =COUNT(B51:B65) -> 14 | P69: Ny | Q69: =SUM(Q52:Q64) -> 277.7151969 | S69: Nx | T69: =SUM(T52:T64) -> 2.527858393
A72: Column diameter/m | B72: 0.156 | D72: Packing height/m | E72: 0.0254
A73: Column area/m2 | B73: =PI()*(B72/2)^2 -> 0.0191134497
A74: Area | B74: Mass Transfer Coeff in the gas phase | G74: Mass Transfer Coef in liquid
B75: Bottom | C75: Top | G75: Bottom | H75: Top
A76: T/K | B76: 373 | C76: 353 | F76: T/K | G76: 373 | H76: 353
A77: Pressure/Pa | B77: 101325 | C77: 101325 | F77: Pressure/Pa | G77: 101325 | H77: 101325
A78: z | B78: 1 | C78: 1 | F78: z | G78: 1 | H78: 1
A79: Density/kg/m3 | B79: =0.001*$C$16*B77/(B78*8.31441*B76) -> 0.6635692728 | C79: =0.001*$C$16*C77/(C78*8.31441*C76) -> 0.7011652656 | F79: Density/kg/m3 | G79: 965 | H79: 978
A80: Viscosity/kg/m/s | B80: 1.2e-05 | C80: 1.1e-05 | F80: Viscosity/kg/m/s | G80: 0.000317 | H80: 0.000406
A81: Diffusion Rate/m2/s | B81: 2e-05 | C81: 2e-05 | F81: Diffusion Rate/m2/s | G81: 5e-09 | H81: 5e-09
A83: Molar Flow Rate/mol/s | B83: =D51 -> 0.23622 | C83: =D64 -> 0.2513827883 | F83: Molar Flow Rate/mol/s | G83: =C51 -> 0.988268 | H83: =C64 -> 1.003430788
A84: Molecular Weight/g/mol | B84: =$C$16 -> 20.31 | C84: =$C$16 -> 20.31 | D84: kg/hr | E84: kg/hr | F84: Molecular Weight/g/mol | G84: =$D$16 -> 18.7 | H84: =$D$16 -> 18.7
A85: Mass Flow Rate/kg/s | B85: =B84*0.001*B83 -> 0.0047976282 | C85: =C84*0.001*C83 -> 0.00510558443 | D85: =B85*3600/B73 -> 903.6286901 | E85: =G85*3600/B73 -> 3480.805547 | F85: Mass Flow Rate/kg/s | G85: =G84*0.001*G83 -> 0.0184806116 | H85: =H84*0.001*H83 -> 0.01876415574
A86: Volumetric Flow Rate/m3/s | B86: =B85/B79 -> 0.007230033693 | C86: =C85/C79 -> 0.007281570666 | F86: Volumetric Flow Rate/m3/s | G86: =G85/G79 -> 1.915089285e-05 | H86: =H85/H79 -> 1.918625331e-05
A87: Linear Velocity/m/s | B87: =B86/$B$73 -> 0.3782694283 | C87: =C86/$B$73 -> 0.3809658005 | F87: Linear Velocity/m/s | G87: =G86/$B$73 -> 0.001001958995 | H87: =H86/$B$73 -> 0.001003809025
A89: a/m2/m3 | B89: 255.9 | C89: 255.9 | F89: a/m2/m3 | G89: 255.9 | H89: 255.9
A90: Sc | B90: =B80/(B79*B81) -> 0.904201 | C90: =C80/(C79*C81) -> 0.7844085082 | F90: Sc | G90: =G80/(G79*G81) -> 65.69948187 | H90: =H80/(H79*H81) -> 83.02658487
A91: Re | B91: =(B79*B87)/(B80*B89) -> 81.74025318 | C91: =(C79*C87)/(C80*C89) -> 94.89501817 | F91: Re | G91: =(G79*G87)/(G80*G89) -> 11.91921664 | H91: =(H79*H87)/(H80*H89) -> 9.449169324
A92: k'y/m/s | B92: =0.523*B91^0.7*B90^0.333*(B89*$E$72)^-2*(B89*B81) -> 0.001336396685 | C92: =0.523*C91^0.7*C90^0.333*(C89*$E$72)^-2*(C89*C81) -> 0.001414969046 | D92: bottom | F92: k'x/m/s | G92: =0.000051*G91^0.667*G90^-0.5*(G89*$E$72)^0.4*(G79/(G80*9.81))^-0.333 -> 1.030478531e-06 | H92: =0.000051*H91^0.667*H90^-0.5*(H89*$E$72)^0.4*(H79/(H80*9.81))^-0.333 -> 8.48775533e-07
B93: =1/B92 -> 748.2808144 | D93: kx/ky | E93: kx/ky | G93: =1/G92 -> 970422.9343
A94: (phi)y,k | B94: 1 | C94: 1 | D94: =G92/B92 -> 0.0007710873146 | E94: =H92/C92 -> 0.0005998544884 | F94: (phi)x,k | G94: 1 | H94: 1
A96: Hy | B96: =(B94*B87)/(B92*B89) -> 1.106102993 | C96: =(C94*C87)/(C92*C89) -> 1.052128453 | F96: Hx | G96: =(G94*G87)/(G92*G89) -> 3.799624805 | H96: =(H94*H87)/(H92*H89) -> 4.621553216
A97: Average Hy | B97: =AVERAGE(C96,B96) -> 1.079115723 | F97: Average Hx | G97: =AVERAGE(H96,G96) -> 4.21058901
D98: =D94-E94 -> 0.0001712328262
D99: =D98/(B69-1) -> 1.317175586e-05
A100: Ny | B100: =Q69 -> 277.7151969 | F100: Nx | G100: =T69 -> 2.527858393
A102: h=Hy*Ny | B102: =B96*Q69 -> 307.1816105 | F102: h=Hx*Nx | G102: =G96*T69 -> 9.604913454

Sheet Combined Rotameter Graphs
P1: Feed Run
P2: Distillate | S2: Reflux
P3: % reading | Q3: Mass Flow | S3: % reading | T3: Mass Flow
P4: 28 | Q4: =0.0747 * P4 - 0.2591 -> 1.8325 | S4: 22 | T4: =0.1231 * S4 - 0.1 -> 2.6082
P6: Feed | S6: Bottoms
P7: % reading | Q7: Mass Flow | S7: % reading | T7: Mass Flow
P8: 47 | Q8: =0.1186 * P8 + 0.1378 -> 5.712 | S8: 31 | T8: =0.4833 * S8 - 0.919 -> 14.0633
D36: Readings | G36: There is one rotameter with scale from 0-0.1
D37: 0 on the rotameter = 0% | G37: 0=0%
D38: 1 on the rotameter = 100% | G38: 0.1=100%

Sheet Thermometer Calibration
A2: Koska ikivanha lämpömittari meni rikki, laitoin tilalle uudemman
A3: lämpömittarin. | J3: T2-3 | K3: Correction
A4: Kalibrointikäyrä Frontek:in kanssa (valm. nro. 1311601), (anturin nro. T2-3) | J4: 19.975 | K4: =0.025 -> 0.025
J5: 49.96 | K5: 0.04
A6: Findip lämpömittari, kanava 3 | J6: 79.945 | K6: 0.055
J7: 99.935 | K7: 0.065
B8: Original T | C8: Corrected T | E8: Difference
B9: Frontek | C9: Frontek | D9: Findip | E9: Findip
B10: T/C, näyttämä | C10: T/C, calibr. | D10: T/C, näyttämä | E10: T/C, korjaus
B11: 20.6 | C11: =(0.00050025*B11+0.0150075)+B11 -> 20.62531265 | D11: 20.45 | E11: =C11-D11 -> 0.17531265
B12: 29.945 | C12: =(0.00050025*B12+0.0150075)+B12 -> 29.97498749 | D12: 29.8 | E12: =C12-D12 -> 0.1749874863
B13: 40.005 | C13: 40.04002 | D13: 39.8 | E13: =C13-D13 -> 0.2400200013
B14: 50.775 | C14: 50.81540769 | D14: 50.48 | E14: 0.3354076937
B15: 59.96 | C15: 60.00500249 | D15: 59.5 | E15: 0.50500249
B16: 69.845 | C16: 69.89494746 | D16: 69.2 | E16: 0.6949474612
B17: 79.85 | C17: 79.90495246 | D17: 78.98 | E17: 0.9249524625
B18: 89.875 | C18: 89.93496747 | D18: 88.63 | E18: 1.304967469
D20: 100 | E20: =0.00028336*D20^2-0.01480591*D20+0.36609879 -> 1.71910779
A22: Graph for correcting the raw temperature
B33: .

Sheet Feed rotameter
A3: Data Plots for establishing trendline
C4: grammaa | F4: Reading | G4: Mass Flow
B5: aika/s | C5: astia | D5: astia+liuos | E5: liuos | F5: lukema/% | G5: massavirta
B6: 225 | C6: 270 | D6: 1815 | E6: =D6-C6 -> 1545 | F6: 56.5 | G6: =E6/B6 -> 6.866666667
B7: 247 | C7: 274 | D7: 1704 | E7: =D7-C7 -> 1430 | F7: 48 | G7: =E7/B7 -> 5.789473684
B8: 342 | C8: 274 | D8: 1747 | E8: =D8-C8 -> 1473 | F8: 35 | G8: =E8/B8 -> 4.307017544
I15: min | J15: =(0.1186*20+0.1378)*60/1000/0.997 -> 0.1510411234 | K15: l/min
I16: max | J16: =(0.1186*100+0.1378)*60/1000/0.997 -> 0.7220341023 | K16: l/min
B31: feed rate
B32: syoton tiheys
C33: astia | D33: astia+liuos | E33: liuos | F33: tilavuus
C34: 95.64 | D34: 342.335 | E34: =D34-C34 -> 246.695 | F34: 250 | G34: =E34/F34 -> 0.98678
C35: vessel? | D35: ves+solution | E35: solution | F35: volume

Sheet Bottoms rotameter
A3: Data Plots for establishing trendline
C4: grammaa | F4: Reading | G4: Mass Flow
B5: aika/s | C5: astia | D5: astia+liuos | E5: liuos | F5: lukema/% | G5: massavirta
B6: 68 | C6: 52 | D6: 424 | E6: =D6-C6 -> 372 | F6: 12.5 | G6: =E6/B6 -> 5.470588235
B7: 85 | C7: 53 | D7: 373 | E7: 320 | F7: 8.8 | G7: 3.764705882
B8: 235 | C8: 53 | D8: 364 | E8: 311 | F8: 5 | G8: 1.323404255
B9: 57 | C9: 53 | D9: 408 | E9: 355 | F9: 15 | G9: 6.228070175
B10: 51 | C10: 53 | D10: 420 | E10: 367 | F10: 17 | G10: 7.196078431
B11: 70 | C11: 53 | D11: 299 | E11: 246 | F11: 10 | G11: 3.514285714
J31: min | K31: =(0.4833*5-0.919)*60/1000/0.997 -> 0.09012036108 | L31: l/min
J32: max | K32: =(0.4833*20-0.919)*60/1000/0.997 -> 0.5263991976 | L32: l/min

Sheet Distillate rotameter
A3: Data Plots for establishing trendline
C4: grammaa | F4: Reading | G4: Mass Flow
B5: aika/s | C5: astia | D5: astia+liuos | E5: liuos | F5: lukema/% | G5: massavirta
F6: 14.4 | G6: 0.81
B7: 69 | C7: 54 | D7: 133 | E7: =D7-C7 -> 79 | F7: 19.4 | G7: =E7/B7 -> 1.144927536
B8: 124 | C8: 54 | D8: 147 | E8: =D8-C8 -> 93 | F8: 13.5 | G8: =E8/B8 -> 0.75
B9: 110 | C9: 54 | D9: 154 | E9: 100 | F9: 15.5 | G9: 0.9090909091
B10: 84 | C10: 54 | D10: 153 | E10: 99 | F10: 18.5 | G10: 1.178571429
B11: 205 | C11: 54 | D11: 150 | E11: 96 | F11: 10 | G11: 0.4682926829
B12: 257 | C12: 54 | D12: 114 | E12: 60 | F12: 7 | G12: 0.233463035
B13: 240 | C13: 54 | D13: 71 | E13: 17 | F13: 4 | G13: 0.07083333333
I32: min | J32: =(0.0747*4-0.2591)*60/1000/0.997 -> 0.002389167503 | K32: l/min
I33: max | J33: =(0.0747*20-0.2591)*60/1000/0.997 -> 0.07431695085 | K33: l/min

Sheet Reflux rotameter
A3: Data Plots for establishing trendline
C4: grammaa | F4: Reading | G4: Mass Flow
B5: aika/s | C5: astia | D5: astia+liuos | E5: liuos | F5: lukema/% | G5: massavirta
B6: 339 | C6: 274 | D6: 1080 | E6: =D6-C6 -> 806 | F6: 20 | G6: =E6/B6 -> 2.377581121
B7: 249 | C7: 274 | D7: 1172 | E7: 898 | F7: 30 | G7: 3.606425703
B8: 244 | C8: 274 | D8: 1446 | E8: 1172 | F8: 40 | G8: 4.803278689
B9: 168 | C9: 274 | D9: 1283 | E9: 1009 | F9: 50 | G9: 6.005952381
B10: 129 | C10: 274 | D10: 1216 | E10: 942 | F10: 60 | G10: 7.302325581
B11: 129 | C11: 274 | D11: 1375 | E11: 1101 | F11: 70 | G11: 8.534883721
I34: min | J34: =(0.1231*15-0.1)*60/1000/0.997 -> 0.1051053159 | K34: l/min
I35: max | J35: =(0.1231*100-0.1)*60/1000/0.997 -> 0.7348044132 | K35: l/min
